[Event "Istanbul Open 2019"]
[Site "Istanbul"]
[Date "2019.08.26"]
[Round "1.2"]
[White "Huseynov, Shamsaddin"]
[Black "Arat, Ufuk Sezen"]
[Result "0-1"]
[ECO "B07"]
[WhiteElo "1967"]
[BlackElo "2390"]
[Annotator "ChessBase"]
[PlyCount "64"]
[EventDate "2019.08.26"]
[EventType "swiss"]
[EventCountry "TUR"]
[SourceTitle "playchess.com"]
[Source "ChessBase"]
[SourceQuality "1"]
[TimeControl "5400+30"]

1. e4 {[%emt 1:23:01]} g6 {[%emt 1:14:51]} 2. d4 {[%emt 0:00:30]} d6 {[%emt 0:00:30]} 3. Nc3 {[%emt 0:00:30]} Bg7 {[%emt 0:00:30]} 4. Be2 {[%emt 0:00:30]} Nf6 {[%emt 0:00:30]} 5. Be3 {[%emt 0:00:30]} a6 {[%emt 0:00:30]} 6. g4 {[%emt 0:00:30]} h5 {[%emt 0:00:30]} 7. g5 {[%emt 0:00:30]} Nfd7 {[%emt 0:00:30]} 8. Nf3 {[%emt 0:00:30]} b5 {[%emt 0:00:30]} 9. a4 {[%emt 0:00:30]} b4 {[%emt 0:00:30]} 10. Nd5 {[%emt 0:00:30]} a5 {[%emt 0:00:30]} 11. Nf4 {[%emt 0:00:30]} e5 {[%emt 0:00:30]} 12. dxe5 {[%emt 0:00:30]} dxe5 {[%emt 0:00:30]} 13. Nd3 {[%emt 0:00:30]} Qe7 {[%emt 0:00:30]} 14. c4 {[%emt 0:00:30]} Bb7 {[%emt 0:00:30]} 15. Nd2 {[%emt 0:00:30]} Nc6 {[%emt 0:00:30]} 16. h4 {[%emt 0:00:30]} Nd4 {[%emt 0:00:30]} 17. f3 {[%emt 0:00:30]} Nf8 {[%emt 0:00:30]} 18. Nb3 {[%emt 0:00:30]} Nfe6 {[%emt 0:00:30]} 19. Bxd4 {[%emt 0:00:30]} exd4 {[%emt 0:00:30]} 20. Qc2 {[%emt 0:00:30]} O-O {[%emt 0:00:30]} 21. O-O-O {[%emt 0:00:30]} Rfb8 {[%emt 0:00:30]} 22. Nd2 {[%emt 0:00:30]} b3 {[%emt 0:00:30]} 23. Nxb3 {[%emt 0:00:30]} Bc6 {[%emt 0:00:30]} 24. Nd2 {[%emt 0:00:30]} Nc5 {[%emt 0:00:30]} 25. Nxc5 {[%emt 0:00:30]} Qxc5 {[%emt 0:00:30]} 26. Bd3 {[%emt 0:00:30]} Be5 {[%emt 0:00:30]} 27. Rdf1 {[%emt 0:00:30]} Bf4 {[%emt 0:00:30]} 28. e5 {[%emt 0:00:30]} Rb4 {[%emt 0:00:30]} 29. b3 {[%emt 0:00:30]} Rab8 {[%emt 0:00:30]} 30. Bxg6 {[%emt 0:00:30]} Rxb3 {[%emt 0:00:30]} 31. Bxf7+ {[%emt 0:00:30]} Kf8 {[%emt 0:00:30]} 32. Bg6 {[%emt 0:00:30]} Rc3 0-1

[Event "Istanbul Open 2019"]
[Site "Istanbul"]
[Date "2019.08.26"]
[Round "1.4"]
[White "Senyuz, Mustafa Zorbey"]
[Black "Ozsakallioglu, Okan"]
[Result "0-1"]
[ECO "B49"]
[WhiteElo "1844"]
[BlackElo "2324"]
[Annotator "ChessBase"]
[PlyCount "76"]
[EventDate "2019.08.26"]
[EventType "swiss"]
[EventCountry "TUR"]
[SourceTitle "playchess.com"]
[Source "ChessBase"]
[SourceQuality "1"]
[TimeControl "5400+30"]

1. e4 c5 2. Nf3 e6 3. d4 cxd4 4. Nxd4 Nf6 5. Nc3 Nc6 6. a3 a6 7. Be3 Qc7 8. Be2 b5 9. O-O Bb7 10. f4 Bc5 11. e5 Qb6 12. Bf3 Bxd4 13. Bxd4 Nxd4 14. Bxb7 Nf5+ 15. Kh1 Qxb7 16. exf6 gxf6 17. Qe2 d5 18. Rad1 Rd8 19. Rfe1 h5 20. Qd3 Kf8 21. Ne2 Qc7 22. Nd4 Nxd4 23. Qxd4 Ke7 24. c3 h4 25. a4 h3 26. g3 bxa4 27. Qxa4 Rd6 28. Rd4 Rb8 29. Qa3 Qb7 30. b4 Kd7 31. Qa4+ Qc6 32. Qc2 f5 33. Kg1 Rc8 34. Rc1 Qb6 35. Qa4+ Ke7 36. Qd1 Rc4 37. Qd2 Rdc6 38. Kf1 Qxd4 0-1

[Event "Istanbul Open 2019"]
[Site "Istanbul"]
[Date "2019.08.26"]
[Round "1.7"]
[White "Citak, Selim"]
[Black "Demir, Baran"]
[Result "1-0"]
[ECO "E70"]
[WhiteElo "2263"]
[BlackElo "1859"]
[Annotator "ChessBase"]
[PlyCount "89"]
[EventDate "2019.08.26"]
[EventType "swiss"]
[EventCountry "TUR"]
[SourceTitle "playchess.com"]
[Source "ChessBase"]
[SourceQuality "1"]
[TimeControl "5400+30"]

1. d4 {[%emt 0:47:30]} Nf6 {[%emt 1:21:16]} 2. c4 {[%emt 0:00:30]} c5 {[%emt 0:00:30]} 3. d5 {[%emt 0:00:30]} g6 {[%emt 0:00:30]} 4. Nc3 {[%emt 0:00:30]} Bg7 {[%emt 0:00:30]} 5. e4 {[%emt 0:00:30]} O-O {[%emt 0:00:30]} 6. Bd3 {[%emt 0:00:30]} d6 {[%emt 0:00:30]} 7. Nge2 {[%emt 0:00:30]} Na6 {[%emt 0:00:30]} 8. O-O {[%emt 0:00:30]} Nc7 {[%emt 0:00:30]} 9. Ng3 {[%emt 0:00:30]} h5 {[%emt 0:00:30]} 10. h3 {[%emt 0:00:30]} h4 {[%emt 0:00:30]} 11. Nge2 {[%emt 0:00:30]} Nh5 {[%emt 0:00:30]} 12. Bg5 {[%emt 0:00:30]} Bf6 {[%emt 0:00:30]} 13. Bxf6 {[%emt 0:00:30]} exf6 {[%emt 0:00:30]} 14. f4 {[%emt 0:00:30]} f5 {[%emt 0:00:30]} 15. Qc2 {[%emt 0:00:30]} Qf6 {[%emt 0:00:30]} 16. Rae1 {[%emt 0:00:30]} Bd7 {[%emt 0:00:30]} 17. Kh2 {[%emt 0:00:30]} Rfe8 {[%emt 0:00:30]} 18. Rf3 {[%emt 0:00:30]} Rab8 {[%emt 0:00:30]} 19. Rg1 {[%emt 0:00:30]} b5 {[%emt 0:00:30]} 20. b3 {[%emt 0:00:30]} b4 {[%emt 0:00:30]} 21. Nd1 {[%emt 0:00:30]} fxe4 {[%emt 0:00:30]} 22. Bxe4 {[%emt 0:00:30]} Bf5 {[%emt 0:00:30]} 23. Bxf5 {[%emt 0:00:30]} Qxf5 {[%emt 0:00:30]} 24. Qxf5 {[%emt 0:00:30]} gxf5 {[%emt 0:00:30]} 25. Ne3 {[%emt 0:00:30]} Nf6 {[%emt 0:00:30]} 26. Nc1 {[%emt 0:00:30]} Rxe3 {[%emt 0:00:30]} 27. Rxe3 {[%emt 0:00:30]} Ne4 {[%emt 0:00:30]} 28. Ne2 {[%emt 0:00:30]} Ne8 {[%emt 0:00:30]} 29. g3 {[%emt 0:00:30]} N8f6 {[%emt 0:00:30]} 30. gxh4+ {[%emt 0:00:30]} Kf8 {[%emt 0:00:30]} 31. Ng3 {[%emt 0:00:30]} Nxg3 {[%emt 0:00:30]} 32. Rexg3 {[%emt 0:00:30]} Re8 {[%emt 0:00:30]} 33. Rg5 {[%emt 0:00:30]} Re3 {[%emt 0:00:30]} 34. Rxf5 {[%emt 0:00:30]} Ne4 {[%emt 0:00:30]} 35. Rg2 {[%emt 0:00:30]} Rf3 {[%emt 0:00:30]} 36. h5 {[%emt 0:00:30]} Nf2 {[%emt 0:00:30]} 37. Rg3 {[%emt 0:00:30]} Rxg3 {[%emt 0:00:30]} 38. Kxg3 {[%emt 0:00:30]} Ne4+ {[%emt 0:00:30]} 39. Kf3 {[%emt 0:00:30]} Nc3 {[%emt 0:00:30]} 40. Rg5 {[%emt 0:00:30]} Nxa2 {[%emt 0:00:30]} 41. h6 {[%emt 0:00:30]} Nc1 {[%emt 0:00:30]} 42. h7 {[%emt 0:00:30]} Nxb3 {[%emt 0:00:30]} 43. h8=Q+ {[%emt 0:00:30]} Ke7 {[%emt 0:00:30]} 44. Qb8 {[%emt 0:00:30]} Nd4+ {[%emt 0:00:30]} 45. Kf2 1-0

[Event "Istanbul Open 2019"]
[Site "Istanbul"]
[Date "2019.08.26"]
[Round "1.8"]
[White "Aslan, Dogukan"]
[Black "Nuri, Murad"]
[Result "0-1"]
[ECO "E10"]
[WhiteElo "1837"]
[BlackElo "2291"]
[Annotator "ChessBase"]
[PlyCount "66"]
[EventDate "2019.08.26"]
[EventType "swiss"]
[EventCountry "TUR"]
[SourceTitle "playchess.com"]
[Source "ChessBase"]
[SourceQuality "1"]
[TimeControl "5400+30"]

1. d4 {[%emt 1:29:27]} Nf6 {[%emt 1:05:30]} 2. c4 {[%emt 0:00:30]} e6 {[%emt 0:00:30]} 3. g3 {[%emt 0:00:30]} a6 {[%emt 0:00:30]} 4. Nf3 {[%emt 0:00:30]} b5 {[%emt 0:00:30]} 5. cxb5 {[%emt 0:00:30]} axb5 {[%emt 0:00:30]} 6. Bg2 {[%emt 0:00:30]} Bb7 {[%emt 0:00:30]} 7. O-O {[%emt 0:00:30]} Be7 {[%emt 0:00:30]} 8. Nbd2 {[%emt 0:00:30]} O-O {[%emt 0:00:30]} 9. Ne5 {[%emt 0:00:30]} Bxg2 {[%emt 0:00:30]} 10. Kxg2 {[%emt 0:00:30]} Qc8 {[%emt 0:00:30]} 11. Nd3 {[%emt 0:00:30]} Qb7+ {[%emt 0:00:30]} 12. Kg1 {[%emt 0:00:30]} d6 {[%emt 0:00:30]} 13. Nb3 {[%emt 0:00:30]} Nbd7 {[%emt 0:00:30]} 14. Bg5 {[%emt 0:00:30]} Rfc8 {[%emt 0:00:30]} 15. Nd2 {[%emt 0:00:30]} c5 {[%emt 0:00:30]} 16. dxc5 {[%emt 0:00:30]} dxc5 {[%emt 0:00:30]} 17. a4 {[%emt 0:00:30]} c4 {[%emt 0:00:30]} 18. Nf4 {[%emt 0:00:30]} b4 {[%emt 0:00:30]} 19. Qc2 {[%emt 0:00:30]} b3 {[%emt 0:00:30]} 20. Qb1 {[%emt 0:00:30]} Ra5 {[%emt 0:00:30]} 21. Bxf6 {[%emt 0:00:30]} Nxf6 {[%emt 0:00:30]} 22. Rc1 {[%emt 0:00:30]} Qb4 {[%emt 0:00:30]} 23. Rc3 {[%emt 0:00:30]} Rac5 {[%emt 0:00:30]} 24. Ne4 {[%emt 0:00:30]} R5c7 {[%emt 0:00:30]} 25. Rf3 {[%emt 0:00:30]} Nxe4 {[%emt 0:00:30]} 26. Qxe4 {[%emt 0:00:30]} Bf6 {[%emt 0:00:30]} 27. Qb1 {[%emt 0:00:30]} Bxb2 {[%emt 0:00:30]} 28. Qxb2 {[%emt 0:00:30]} c3 {[%emt 0:00:30]} 29. Rxc3 {[%emt 0:00:30]} Qxc3 {[%emt 0:00:30]} 30. Qxc3 {[%emt 0:00:30]} Rxc3 {[%emt 0:00:30]} 31. Nd3 {[%emt 0:00:30]} Rc1+ {[%emt 0:00:30]} 32. Rxc1 {[%emt 0:00:30]} Rxc1+ {[%emt 0:00:30]} 33. Nxc1 {[%emt 0:00:30]} b2 0-1

[Event "Istanbul Open 2019"]
[Site "Istanbul"]
[Date "2019.08.26"]
[Round "1.9"]
[White "Darban, Morteza"]
[Black "Mustafayev, Nihad"]
[Result "1-0"]
[ECO "E61"]
[WhiteElo "2280"]
[BlackElo "1925"]
[Annotator "ChessBase"]
[PlyCount "24"]
[EventDate "2019.08.26"]
[EventType "swiss"]
[EventCountry "TUR"]
[SourceTitle "playchess.com"]
[Source "ChessBase"]
[SourceQuality "1"]
[TimeControl "5400+30"]

1. c4 {[%emt 1:29:20]} Nf6 {[%emt 1:13:20]} 2. Nc3 {[%emt 0:00:30]} g6 {[%emt 0:00:30]} 3. g3 {[%emt 0:00:30]} Bg7 {[%emt 0:00:30]} 4. Bg2 {[%emt 0:00:30]} O-O {[%emt 0:00:30]} 5. d4 {[%emt 0:00:30]} d6 {[%emt 0:00:30]} 6. e3 {[%emt 0:00:30]} e5 {[%emt 0:00:30]} 7. Nge2 {[%emt 0:00:30]} Na6 {[%emt 0:00:30]} 8. O-O {[%emt 0:00:30]} c6 {[%emt 0:00:30]} 9. b3 {[%emt 0:00:30]} Nc7 {[%emt 0:00:30]} 10. Bb2 {[%emt 0:00:30]} a6 {[%emt 0:00:30]} 11. dxe5 {[%emt 0:00:30]} dxe5 {[%emt 0:00:30]} 12. Na4 {[%emt 0:00:30]} Nd7 1-0

[Event "Istanbul Open 2019"]
[Site "Istanbul"]
[Date "2019.08.26"]
[Round "1.10"]
[White "Aydogdu, Cagatay"]
[Black "Kilic, Efe Mert"]
[Result "0-1"]
[ECO "B07"]
[WhiteElo "1914"]
[BlackElo "2272"]
[Annotator "ChessBase"]
[PlyCount "49"]
[EventDate "2019.08.26"]
[EventType "swiss"]
[EventCountry "TUR"]
[SourceTitle "playchess.com"]
[Source "ChessBase"]
[SourceQuality "1"]
[TimeControl "5400+30"]

1. e4 {[%emt 1:06:30]} d6 {[%emt 1:03:30]} 2. d4 {[%emt 0:00:30]} Nf6 {[%emt 0:00:30]} 3. Bd3 {[%emt 0:00:30]} e5 {[%emt 0:00:30]} 4. c3 {[%emt 0:00:30]} Nc6 {[%emt 0:00:30]} 5. Ne2 {[%emt 0:00:30]} g6 {[%emt 0:00:30]} 6. O-O {[%emt 0:00:30]} Bg7 {[%emt 0:00:30]} 7. dxe5 {[%emt 0:00:30]} dxe5 {[%emt 0:00:30]} 8. f3 {[%emt 0:00:30]} O-O {[%emt 0:00:30]} 9. Bb5 {[%emt 0:00:30]} Bd7 {[%emt 0:00:30]} 10. Na3 {[%emt 0:00:30]} Qe7 {[%emt 0:00:30]} 11. Be3 {[%emt 0:00:30]} a6 {[%emt 0:00:30]} 12. Bxc6 {[%emt 0:00:30]} Bxc6 {[%emt 0:00:30]} 13. b4 {[%emt 0:00:30]} b6 {[%emt 0:00:30]} 14. Qb3 {[%emt 0:00:30]} Ne8 {[%emt 0:00:30]} 15. c4 {[%emt 0:00:30]} Bd7 {[%emt 0:00:30]} 16. Nc3 {[%emt 0:00:30]} f5 {[%emt 0:00:30]} 17. Nd5 {[%emt 0:00:30]} Qf7 {[%emt 0:00:30]} 18. Bg5 {[%emt 0:00:30]} Kh8 {[%emt 0:00:30]} 19. Rad1 {[%emt 0:00:30]} Qe6 {[%emt 0:00:30]} 20. c5 {[%emt 0:00:30]} b5 {[%emt 0:00:30]} 21. Nb1 {[%emt 0:00:30]} h6 {[%emt 0:00:30]} 22. Bh4 {[%emt 0:00:30]} Kh7 {[%emt 0:00:30]} 23. Ndc3 {[%emt 0:00:30]} Rf7 {[%emt 0:00:30]} 24. exf5 {[%emt 0:00:30]} gxf5 {[%emt 0:00:30]} 25. Rfe1 {[%emt 0:00:30]} 0-1

[Event "Istanbul Open 2019"]
[Site "Istanbul"]
[Date "2019.08.26"]
[Round "1.11"]
[White "Aliakbarov, Anar"]
[Black "Temizer, Umut"]
[Result "1-0"]
[ECO "D30"]
[WhiteElo "2265"]
[BlackElo "1833"]
[Annotator "ChessBase"]
[PlyCount "24"]
[EventDate "2019.08.26"]
[EventType "swiss"]
[EventCountry "TUR"]
[SourceTitle "playchess.com"]
[Source "ChessBase"]
[SourceQuality "1"]
[TimeControl "5400+30"]

1. d4 {[%emt 0:56:30]} d5 {[%emt 1:14:11]} 2. c4 {[%emt 0:00:30]} c6 {[%emt 0:00:30]} 3. Nf3 {[%emt 0:00:30]} Nf6 {[%emt 0:00:30]} 4. e3 {[%emt 0:00:30]} e6 {[%emt 0:00:30]} 5. Nbd2 {[%emt 0:00:30]} Nbd7 {[%emt 0:00:30]} 6. b3 {[%emt 0:00:30]} b6 {[%emt 0:00:30]} 7. Bb2 {[%emt 0:00:30]} Bb7 {[%emt 0:00:30]} 8. Bd3 {[%emt 0:00:30]} c5 {[%emt 0:00:30]} 9. cxd5 {[%emt 0:00:30]} exd5 {[%emt 0:00:30]} 10. O-O {[%emt 0:00:30]} Bd6 {[%emt 0:00:30]} 11. Qe2 {[%emt 0:00:30]} O-O {[%emt 0:00:30]} 12. Ba6 {[%emt 0:00:30]} Bc8 1-0

[Event "Istanbul Open 2019"]
[Site "Istanbul"]
[Date "2019.08.26"]
[Round "1.13"]
[White "Eren, Ataberk"]
[Black "Onem, Cem"]
[Result "1-0"]
[ECO "D55"]
[WhiteElo "2254"]
[BlackElo "1833"]
[Annotator "ChessBase"]
[PlyCount "37"]
[EventDate "2019.08.26"]
[EventType "swiss"]
[EventCountry "TUR"]
[SourceTitle "playchess.com"]
[Source "ChessBase"]
[SourceQuality "1"]
[TimeControl "5400+30"]

1. d4 d5 2. Nf3 Nf6 3. c4 e6 4. Nc3 Be7 5. Bg5 Nbd7 6. e3 O-O 7. cxd5 exd5 8. Bd3 b6 9. O-O Bb7 10. Rc1 c5 11. Re1 c4 12. Bb1 a6 13. Ne5 b5 14. f4 Re8 15. Qf3 Nf8 16. Qh3 h6 17. Bxh6 gxh6 18. Qg3+ Ng6 19. Bxg6 1-0

[Event "Istanbul Open 2019"]
[Site "Istanbul"]
[Date "2019.08.26"]
[Round "1.14"]
[White "Asgarov, Nihad"]
[Black "Yaran, Siar"]
[Result "0-1"]
[ECO "C62"]
[WhiteElo "1909"]
[BlackElo "2209"]
[Annotator "ChessBase"]
[PlyCount "110"]
[EventDate "2019.08.26"]
[EventType "swiss"]
[EventCountry "TUR"]
[SourceTitle "playchess.com"]
[Source "ChessBase"]
[SourceQuality "1"]
[TimeControl "5400+30"]

1. e4 e5 2. Nf3 Nc6 3. Bb5 d6 4. d4 Bd7 5. dxe5 Nxe5 6. Bxd7+ Qxd7 7. Nxe5 dxe5 8. Qxd7+ Kxd7 9. Be3 Nf6 10. Nc3 c6 11. f3 Ke6 12. O-O-O Bb4 13. Na4 b6 14. Rd3 Rhd8 15. Rhd1 Rd7 16. a3 Be7 17. Nc3 Rad8 18. Rxd7 Nxd7 19. Ne2 Rg8 20. g4 Bc5 21. Bxc5 Nxc5 22. Ng3 g6 23. Rd2 Ke7 24. Kd1 Rh8 25. b3 b5 26. Ke2 Rb8 27. Ke3 Rb6 28. Rd1 Ra6 29. Ra1 Ne6 30. Ne2 b4 31. a4 c5 32. Rd1 Nd4 33. Rd2 Rc6 34. f4 Nxe2 35. Rxe2 exf4+ 36. Kxf4 c4 37. bxc4 Rxc4 38. Ke5 a5 39. Rd2 f6+ 40. Kd5 Rc3 41. g5 fxg5 42. e5 g4 43. Rf2 Rf3 44. Rg2 h5 45. Kc5 Re3 46. Kd5 Ra3 47. Rf2 Rf3 48. Rg2 Rf1 49. Kc5 Re1 50. Kd5 Rd1+ 51. Kc5 Ke6 52. h3 gxh3 53. Rxg6+ Kf5 54. Rh6 Kg5 55. Rd6 Rc1 0-1

[Event "Istanbul Open 2019"]
[Site "Istanbul"]
[Date "2019.08.26"]
[Round "1.18"]
[White "Cadet, Halil Emre"]
[Black "Metin, Enis"]
[Result "1/2-1/2"]
[ECO "B22"]
[WhiteElo "1404"]
[BlackElo "1749"]
[Annotator "NA RC"]
[PlyCount "31"]
[EventDate "2019.08.26"]
[EventType "swiss"]
[EventCountry "TUR"]
[SourceTitle "playchess.com"]
[Source "ChessBase"]
[SourceQuality "1"]
[TimeControl "5400+30"]

1. e4 {[%emt 0:00:30]} c5 {[%emt 0:00:30]} 2. c3 {[%emt 0:00:30]} g6 {[%emt 0:00:00]} 3. d4 {[%emt 0:00:00]} cxd4 {[%emt 0:00:00]} 4. cxd4 {[%emt 0:00:00]} d5 {[%emt 0:00:00]} 5. e5 {[%emt 0:02:30]} Nc6 {[%emt 0:00:00]} 6. Nf3 {[%emt 0:00:30]} Bg4 {[%emt 0:00:30]} 7. Be2 {[%emt 0:03:30]} Nh6 {[%emt 0:00:00]} 8. Nbd2 {[%emt 0:01:30]} Bg7 {[%emt 0:03:00]} 9. Nb3 {[%emt 0:01:30]} O-O {[%emt 0:02:30]} 10. h3 {[%emt 0:00:30]} Bxf3 {[%emt 0:00:30]} 11. Bxf3 {[%emt 0:01:30]} Nf5 {[%emt 0:07:30]} 12. O-O {[%emt 0:03:30]} e6 {[%emt 0:00:30]} 13. g4 {[%emt 0:04:30]} Nh4 {[%emt 0:01:30]} 14. Be2 {[%emt 0:07:30]} f6 {[%emt 0:01:30]} 15. f4 {[%emt 0:01:30]} fxe5 {[%emt 0:02:30]} 16. fxe5 {[%emt 0:00:30]} 1/2-1/2

[Event "Istanbul Open 2019"]
[Site "Istanbul"]
[Date "2019.08.27"]
[Round "2.1"]
[White "Okus, Melih"]
[Black "Shanava, Konstantine"]
[Result "0-1"]
[ECO "B24"]
[WhiteElo "1959"]
[BlackElo "2496"]
[Annotator "ChessBase"]
[PlyCount "78"]
[EventDate "2019.08.26"]
[EventType "swiss"]
[EventCountry "TUR"]
[SourceTitle "playchess.com"]
[Source "ChessBase"]
[SourceQuality "1"]
[TimeControl "5400+30"]

1. e4 {[%emt 0:21:30]} c5 {[%emt 0:00:30]} 2. Nc3 {[%emt 0:00:30]} Nc6 {[%emt 0:00:30]} 3. g3 {[%emt 0:00:30]} g6 {[%emt 0:00:00]} 4. Bg2 {[%emt 0:00:30]} Bg7 {[%emt 0:00:00]} 5. f4 {[%emt 0:00:30]} d6 {[%emt 0:00:00]} 6. Nf3 {[%emt 0:00:30]} Bg4 {[%emt 0:02:00]} 7. h3 {[%emt 0:00:30]} Bxf3 {[%emt 0:00:30]} 8. Qxf3 {[%emt 0:00:30]} Nd4 {[%emt 0:03:30]} 9. Qd1 {[%emt 0:03:30]} e6 {[%emt 0:00:00]} 10. O-O {[%emt 0:00:30]} Ne7 {[%emt 0:04:00]} 11. d3 {[%emt 0:00:30]} O-O {[%emt 0:00:30]} 12. Ne2 {[%emt 0:01:30]} Rc8 {[%emt 0:00:30]} 13. c3 {[%emt 0:00:30]} Nxe2+ {[%emt 0:00:30]} 14. Qxe2 {[%emt 0:00:30]} b5 {[%emt 0:00:00]} 15. g4 {[%emt 0:00:30]} b4 {[%emt 0:00:00]} 16. Bd2 {[%emt 0:00:30]} bxc3 {[%emt 0:00:30]} 17. Bxc3 {[%emt 0:03:30]} Nc6 {[%emt 0:01:30]} 18. Bxg7 {[%emt 0:06:30]} Kxg7 {[%emt 0:01:30]} 19. f5 {[%emt 0:01:30]} Qf6 {[%emt 0:02:30]} 20. Qd2 {[%emt 0:04:30]} h6 {[%emt 0:01:30]} 21. Rf2 {[%emt 0:05:30]} Qd4 {[%emt 0:05:30]} 22. Kh1 {[%emt 0:07:30]} Ne5 {[%emt 0:03:30]} 23. Rd1 {[%emt 0:00:30]} Rb8 {[%emt 0:01:30]} 24. b3 {[%emt 0:04:30]} a5 {[%emt 0:00:30]} 25. Qb2 {[%emt 0:12:30]} Qxb2 {[%emt 0:00:30]} 26. Rxb2 {[%emt 0:01:30]} Rb4 {[%emt 0:06:30]} 27. Rbd2 {[%emt 0:03:16]} Nc6 {[%emt 0:01:30]} 28. Kh2 {[%emt 0:03:10]} Rfb8 {[%emt 0:00:30]} 29. Rf2 {[%emt 0:00:50]} Ne5 {[%emt 0:02:30]} 30. Kg3 {[%emt 0:02:33]} a4 {[%emt 0:00:30]} 31. bxa4 {[%emt 0:00:30]} Rxa4 {[%emt 0:00:30]} 32. Kf4 {[%emt 0:02:01]} Ra3 {[%emt 0:03:30]} 33. Bf1 {[%emt 0:01:51]} Rb4 {[%emt 0:00:30]} 34. h4 {[%emt 0:01:34]} Rd4 {[%emt 0:10:30]} 35. Rfd2 {[%emt 0:02:02]} g5+ {[%emt 0:01:30]} 36. hxg5 {[%emt 0:01:00]} hxg5+ {[%emt 0:00:30]} 37. Kxg5 {[%emt 0:00:15]} Nf3+ {[%emt 0:00:30]} 38. Kf4 {[%emt 0:00:28]} Nxd2 {[%emt 0:00:30]} 39. Rxd2 {[%emt 0:00:02]} Rda4 {[%emt 0:00:00]} 0-1

[Event "Istanbul Open 2019"]
[Site "Istanbul"]
[Date "2019.08.27"]
[Round "2.2"]
[White "Arat, Ufuk Sezen"]
[Black "Tarhan, Adar"]
[Result "1-0"]
[ECO "A14"]
[WhiteElo "2390"]
[BlackElo "1949"]
[Annotator "NA"]
[PlyCount "89"]
[EventDate "2019.08.26"]
[EventType "swiss"]
[EventCountry "TUR"]
[SourceTitle "playchess.com"]
[Source "ChessBase"]
[SourceQuality "1"]
[TimeControl "5400+30"]

1. Nf3 {[%emt 0:03:30]} Nf6 {[%emt 0:00:30]} 2. c4 {[%emt 0:00:30]} e6 {[%emt 0:00:00]} 3. g3 {[%emt 0:00:30]} d5 {[%emt 0:00:00]} 4. Bg2 {[%emt 0:00:30]} Be7 {[%emt 0:00:30]} 5. b3 {[%emt 0:00:30]} b6 {[%emt 0:00:30]} 6. O-O {[%emt 0:00:00]} Bb7 {[%emt 0:00:30]} 7. Bb2 {[%emt 0:00:00]} O-O {[%emt 0:00:30]} 8. e3 {[%emt 0:02:30]} Nbd7 {[%emt 0:01:30]} 9. Nc3 {[%emt 0:00:30]} c5 {[%emt 0:01:30]} 10. Qe2 {[%emt 0:01:30]} Rc8 {[%emt 0:00:30]} 11. d3 {[%emt 0:00:30]} Qc7 {[%emt 0:01:30]} 12. Rad1 {[%emt 0:01:30]} Rfd8 {[%emt 0:00:30]} 13. Ne1 {[%emt 0:01:30]} a6 {[%emt 0:03:30]} 14. f4 {[%emt 0:03:30]} Nf8 $14 {[%emt 0:03:30]} 15. Nf3 {[%emt 0:20:30]} Ng6 {[%emt 0:04:30]} 16. e4 {[%emt 0:10:30]} b5 {[%emt 0:02:30]} 17. e5 {[%emt 0:07:30]} Ng4 {[%emt 0:03:30]} 18. cxd5 {[%emt 0:03:30]} exd5 {[%emt 0:00:30]} 19. d4 {[%emt 0:02:30]} b4 {[%emt 0:01:30]} 20. Na4 {[%emt 0:04:30]} Bc6 {[%emt 0:00:30]} 21. Rfe1 {[%emt 0:11:30]} Bxa4 {[%emt 0:01:30]} 22. bxa4 {[%emt 0:00:30]} c4 {[%emt 0:00:30]} 23. f5 {[%emt 0:01:30]} Nh8 {[%emt 0:00:30]} 24. h3 {[%emt 0:00:30]} Nh6 {[%emt 0:00:30]} 25. g4 {[%emt 0:02:30]} Kf8 {[%emt 0:05:30]} 26. Bc1 {[%emt 0:04:36]} Ng8 {[%emt 0:00:30]} 27. Ng5 {[%emt 0:01:02]} Bxg5 {[%emt 0:00:30]} 28. Bxg5 {[%emt 0:00:01]} f6 {[%emt 0:00:30]} 29. Bf4 {[%emt 0:00:57]} c3 {[%emt 0:02:30]} 30. Qe3 {[%emt 0:01:18]} c2 {[%emt 0:01:30]} 31. Rc1 {[%emt 0:00:56]} Qc3 {[%emt 0:02:30]} 32. Qxc3 {[%emt 0:01:57]} Rxc3 {[%emt 0:00:30]} 33. Bd2 {[%emt 0:04:18]} Rc4 {[%emt 0:00:30]} 34. Bf1 {[%emt 0:00:30]} Rxd4 {[%emt 0:00:30]} 35. Be3 {[%emt 0:00:30]} Re4 {[%emt 0:00:30]} 36. Bc5+ {[%emt 0:00:30]} Ke8 {[%emt 0:00:30]} 37. Rxe4 {[%emt 0:00:30]} dxe4 {[%emt 0:00:30]} 38. e6 {[%emt 0:00:30]} Ne7 {[%emt 0:00:30]} 39. Rxc2 {[%emt 0:00:30]} g6 {[%emt 0:00:30]} 40. Bxa6 {[%emt 0:01:40]} gxf5 {[%emt 0:00:00]} 41. Bb5+ {[%emt 0:00:37]} Kf8 {[%emt 0:00:00]} 42. gxf5 {[%emt 0:00:22]} Rd5 {[%emt 0:00:00]} 43. Bxe7+ {[%emt 0:00:33]} Kxe7 {[%emt 0:00:00]} 44. Rc7+ {[%emt 0:00:30]} Kd6 {[%emt 0:00:00]} 45. Rd7+ {[%emt 0:00:00]} 1-0